fUSD/lending_fUSD_20250107
["ID","MTS","AMOUNT","RATE_DAILY","PERIOD"]
[347995549,1736262672274,-500.0,0.00011063,2]
[347995550,1736262672283,-500.0,0.00011063,2]
[347995551,1736262672293,-500.0,0.00011063,2]
[347995552,1736262672303,-969.32,0.00011063,2]
[347995553,1736262672314,-500.0,0.00011063,2]
[347995554,1736262672327,-500.0,0.00011063,2]
[347995555,1736262672336,-578.01,0.00011063,2]
[347995556,1736262672346,-958.61,0.00011063,2]
[347995557,1736262672356,-503.2,0.00011063,2]
[347995558,1736262672366,-288.37,0.00011064,2]
[347995559,1736262672375,-1994.2,0.00011064,2]
[347995560,1736262672385,-1829.52,0.00011064,2]
[347995561,1736262672395,-2261.8,0.00011064,2]
[347995562,1736262672404,-6767.08,0.00011064,2]
[347995563,1736262672414,-2787.82,0.00011064,2]
[347995564,1736262672424,-2741.97,0.00011064,2]
[347995565,1736262672434,-2973.81,0.00011064,2]
[347995566,1736262672443,-894.31,0.00011064,2]
[347995567,1736262672454,-4586.92,0.00011064,2]
[347995568,1736262672464,-1401.32,0.00011064,2]
[347995569,1736262672474,-919.41,0.00011064,2]
[347995570,1736262672483,-881.1,0.00011064,2]
[347995571,1736262672494,-2528.5,0.00011064,2]
[347995572,1736262672504,-1300.76,0.00011064,2]
[347995573,1736262672514,-10024.56,0.00011064,2]
[347995574,1736262672524,-2601.09,0.00011064,2]
[347995575,1736262672533,-5559.01,0.00011064,2]
[347995576,1736262672543,-2386.12,0.00011064,2]
[347995577,1736262672553,-1604.65,0.00011064,2]
[347995578,1736262672563,-2923.56,0.00011064,2]
[347995579,1736262672576,-6648.59,0.00011064,2]
[347995580,1736262672586,-1665.59,0.00011064,2]
[347995581,1736262672595,-500.0,0.00011064,2]
[347995582,1736262672604,-3246.3,0.00011064,2]
[347995583,1736262672614,-1337.5,0.00011064,2]
[347995584,1736262672624,-1338.74,0.00011064,2]
[347995585,1736262672633,-521.18,0.00011064,2]
[347995586,1736262672642,-5846.29,0.00011064,2]
[347995587,1736262672652,-1780.68,0.00011064,2]
[347995588,1736262672662,-2777.67,0.00011064,2]
[347995589,1736262672671,-2668.87,0.00011064,2]
[347995590,1736262672681,-2018.16,0.00011064,2]
[347995591,1736262672691,-3313.36,0.00011064,2]
[347995592,1736262672701,-503.52,0.00011065,2]
[347995593,1736262672710,-4406.75,0.00011065,2]
[347995594,1736262672720,-3434.44,0.00011065,2]
[347995595,1736262672730,-1707.34,0.00011065,2]
[347995596,1736262672739,-3888.42,0.00011065,2]
[347995597,1736262672750,-604.3,0.00011065,2]
[347995598,1736262672760,-1690.08,0.00011065,2]
[347995599,1736262672770,-2219.59,0.00011065,2]
[347995600,1736262672780,-502.1562931,0.00011073,2]
[347995601,1736262672790,-204.31267156,0.00011073,2]
[347995602,1736262672800,-152.04537875,0.00011073,2]
[347995603,1736262672811,-1093.35803664,0.00011073,2]
[347995604,1736262672824,-3000.0,0.00011076,2]
[347995605,1736262672836,-200.0,0.00011098,2]
[347995606,1736262672851,-146380.57486281,0.00011099,2]
[347995607,1736262672867,-146380.57486281,0.00011099,2]
[347995608,1736262672877,-146380.57486281,0.00011099,2]
[347995609,1736262672888,-146380.57486281,0.00011099,2]
[347995610,1736262672898,-146380.57486281,0.00011099,2]
[347995611,1736262672908,-146380.57486281,0.00011099,2]
[347995612,1736262672919,-175917.20108356,0.00011099,2]
[347995613,1736262672942,-175917.20108354,0.00011099,2]
[347995614,1736262672952,-175917.20108354,0.00011099,2]
[347995615,1736262672962,-175917.20108354,0.00011099,2]
[347995616,1736262672972,-175917.20108354,0.00011099,2]
[347995617,1736262672982,-175917.20108354,0.00011099,2]
[347995618,1736262672991,-175917.20108354,0.00011099,2]
[347995619,1736262673002,-151.0,0.00011099,2]
[347995620,1736262673011,-156.97740133,0.000111,2]
[347995621,1736262673021,-927.79,0.00011136,2]
[347995622,1736262673031,-2874.3,0.00011136,2]
[347995623,1736262673041,-1637.0,0.00011136,2]
[347995624,1736262673051,-1965.95,0.00011136,2]
[347995625,1736262673063,-175917.20108354,0.00011144,2]
[347995626,1736262673077,-146380.57486281,0.00011144,2]
[347995627,1736262673088,-525377.5633876,0.00011167,2]
[347995628,1736262673098,-142766.30051822,0.00011167,2]
[347995629,1736262673108,-11869.48331109,0.00011167,2]
[347995630,1736262673119,-349.80428134,0.00011167,2]
[347995631,1736262673129,-638.81342235,0.00011167,2]
[347995632,1736262673140,-12814.32476389,0.00011168,2]
[347995633,1736262673150,-525377.5633876,0.00011171,2]
[347995634,1736262673160,-13836.26012412,0.00011171,2]
[347995635,1736262673170,-11869.48331109,0.00011171,2]
[347995636,1736262673180,-12814.32476389,0.00011171,2]
[347995637,1736262673190,-12814.32476389,0.00011172,2]
[347995638,1736262673200,-638.81342235,0.00011173,2]
[347995639,1736262673211,-525377.5633876,0.00011173,2]
[347995640,1736262673221,-11869.48331109,0.00011173,2]
[347995641,1736262673231,-12814.32476389,0.00011174,2]
[347995642,1736262673240,-329.32905199,0.00011174,2]
[347995643,1736262673250,-142766.30051822,0.00011174,2]
[347995644,1736262673260,-11869.48331109,0.00011176,2]
[347995645,1736262673269,-200.0,0.00011177,2]
[347995646,1736262673279,-329.32905199,0.00011177,2]
[347995647,1736262673288,-638.81342235,0.00011178,2]
[347995648,1736262673297,-13836.26012412,0.00011178,2]
[347995649,1736262673307,-142766.30051822,0.00011178,2]
[347995650,1736262673317,-200.0,0.00011178,2]
[347995651,1736262673331,-525377.5633876,0.00011179,2]
[347995652,1736262673340,-349.80428134,0.00011179,2]
[347995653,1736262673350,-329.32905199,0.00011179,2]
[347995654,1736262673359,-525377.5633876,0.0001118,2]
[347995655,1736262673368,-13836.26012412,0.0001118,2]
[347995656,1736262673378,-638.81342235,0.0001118,2]
[347995657,1736262673388,-329.32905199,0.00011182,2]
[347995658,1736262673397,-12814.32476389,0.00011184,2]
[347995659,1736262673407,-13836.26012412,0.00011185,2]
[347995660,1736262673416,-12814.32476389,0.00011186,2]
[347995661,1736262673427,-349.80428134,0.00011187,2]
[347995662,1736262673438,-638.81342235,0.00011188,2]
[347995663,1736262673448,-142766.30051822,0.00011189,2]
[347995664,1736262673457,-638.81342235,0.00011193,2]
[347995665,1736262673467,-349.80428134,0.00011193,2]
[347995666,1736262673478,-11869.48331109,0.00011193,2]
[347995667,1736262673488,-13836.26012412,0.00011194,2]
[347995668,1736262673499,-200.0,0.00011195,2]
[347995669,1736262673510,-142766.30051822,0.00011195,2]
[347995670,1736262673519,-329.32905199,0.00011195,2]
[347995671,1736262673529,-329.32905199,0.00011195,2]
[347995672,1736262673539,-11869.48331109,0.00011196,2]
[347995673,1736262673548,-525377.5633876,0.00011196,2]
[347995674,1736262673558,-349.80428134,0.00011197,2]
[347995675,1736262673568,-349.80428134,0.00011198,2]
[347995676,1736262673583,-142766.30051822,0.00011199,2]
[347995677,1736262673592,-200.0,0.00011199,2]
[347995678,1736262673602,-13836.26012412,0.000112,2]
[347995679,1736262673612,-503.2,0.000112,2]
[347995680,1736262673622,-150.0,0.00011224,2]
[347995681,1736262673632,-700.0,0.00011234,2]
[347995682,1736262673642,-150.0,0.00011296,2]
[347995683,1736262673652,-175917.20108354,0.00011326,2]
[347995684,1736262673661,-2524.39,0.00011334,2]
[347995685,1736262673672,-1913.75,0.00011334,2]
[347995686,1736262673682,-1640.33,0.00011334,2]
[347995687,1736262673693,-5646.88,0.00011334,2]
[347995688,1736262673703,-3766.32,0.00011334,2]
[347995689,1736262673713,-9218.37,0.00011334,2]
[347995690,1736262673726,-4993.43,0.00011334,2]
[347995691,1736262673736,-500.0,0.00011334,2]
[347995692,1736262673745,-1147.2,0.00011334,2]
[347995693,1736262673755,-3138.89,0.00011334,2]
[347995694,1736262673764,-7297.15,0.00011334,2]
[347995695,1736262673773,-1967.75,0.00011334,2]
[347995696,1736262673783,-1885.76,0.00011334,2]
[347995697,1736262673793,-862.95,0.00011334,2]
[347995698,1736262673802,-6308.87,0.00011334,2]
[347995699,1736262673812,-3655.87,0.00011334,2]
[347995700,1736262673826,-500.0,0.00011334,2]
[347995701,1736262673839,-529.64,0.00011334,2]
[347995702,1736262673850,-3564.03,0.00011334,2]
[347995703,1736262673861,-884.02,0.00011334,2]
[347995704,1736262673871,-2502.01,0.00011334,2]
[347995705,1736262673885,-771.61,0.00011334,2]
[347995706,1736262673895,-107115.60266275,0.00011335,4]
[347995707,1736262674375,-250.05902309,0.00011335,4]
[347995708,1736262674388,-1965.3025465,0.00011335,4]
[347995709,1736262674399,-801.17392255,0.00011335,4]
[347995710,1736262674411,-6315.3454475,0.00011335,4]
[347995711,1736262674423,-2699.36493833,0.00011335,4]
[347995712,1736262674435,-354.41486,0.00011335,4]
[347995713,1736262674447,-1001.8,0.00011335,4]
[347995714,1736262674459,-435.38038272,0.00011335,4]
[347995715,1736262674471,-259.94963904,0.00011335,4]
[347995716,1736262674484,-2496.705,0.00011335,4]
[347995717,1736262674546,-513.9559594,9.965e-05,2]
[347995718,1736262674556,-551.3440406,0.00011064,2]
[347995719,1736262674568,-905.1559594,0.00011064,2]
[347995720,1736262674584,-120392.76235352,0.00011335,4]
[347995721,1736262674600,-99727.0,0.00011335,4]
[347995722,1736262674611,-819.0341461,0.00011335,4]
[347995723,1736262674624,-652.0666826,0.00011335,4]
[347995724,1736262675347,-500.0,9.965e-05,2]
[347995725,1736262675357,-3679.000004,0.00011335,4]
[347995726,1736262675369,-3592.55550001,0.00011335,4]
[347995727,1736262675382,-4971.5,0.00011335,4]
[347995728,1736262675394,-258.66937654,0.00011335,4]
[347995729,1736262675887,-265.4938,9.766e-05,2]
[347995730,1736262675897,-81.49081568,9.964e-05,2]
[347995731,1736262675909,-418.50918432,9.964e-05,2]
[347995732,1736262675920,-500.0,9.965e-05,2]
[347995733,1736262675929,-500.0,0.00010239,2]
[347995734,1736262675939,-500.0,0.00010239,2]
[347995735,1736262675949,-500.0,0.0001024,2]
[347995736,1736262675959,-500.0,0.00010314,2]
[347995737,1736262675968,-398.74,0.00010513,2]
[347995738,1736262675978,-500.0,0.00010513,2]
[347995739,1736262675989,-500.0,0.00010514,2]
[347995740,1736262675999,-528.5,0.00010588,2]
[347995741,1736262676010,-151.04563381,0.00010695,2]
[347995742,1736262676019,-12633.27044828,0.00011335,4]
[347995743,1736262676031,-379.999905,0.00011335,4]
[347995744,1736262676047,-454.13007203,0.00011335,4]
[347995745,1736262676058,-497.86107205,0.00011335,4]
[347995746,1736262676070,-723.59999995,0.00011335,4]
[347995747,1736262676121,-500.0,0.00010787,2]
[347995748,1736262676131,-29289.8656,0.00011335,4]
[347995749,1736262676144,-2986.6,0.00011335,4]
[347995750,1736262676156,-34001.92687522,0.00011335,4]
[347995751,1736262676167,-501.5,0.00011335,4]
[347995752,1736262676180,-427.047885,0.00011335,4]
[347995753,1736262676193,-1007.2126071,0.00011335,4]
[347995754,1736262676206,-514.97010049,0.00011335,4]
[347995755,1736262676223,-36416.59274475,0.00011335,4]
[347995756,1736262676235,-664.09498059,0.00011335,4]
[347995757,1736262676247,-528.69682788,0.00011335,4]
[347995758,1736262676640,-153.0,9.891e-05,2]
[347995759,1736262676651,-156.503976,9.965e-05,2]
[347995760,1736262676661,-500.0,0.00011061,2]
[347995761,1736262676670,-2865.52703788,0.00011335,4]
[347995762,1736262676681,-4766.39586,0.00011335,4]
[347995763,1736262676694,-376496.04795511,0.00011335,4]
[347995764,1736262676716,-30345.46989598,0.00011335,4]
[347995765,1736262676729,-17666.0,0.00011335,4]
[347995766,1736262676741,-926.59139562,0.00011335,4]
[347995767,1736262676752,-29717.8824,0.00011335,4]
[347995768,1736262676764,-9921.90558525,0.00011335,4]
[347995769,1736262676775,-653.550005,0.00011335,4]
[347995770,1736262676786,-48189.958735,0.00011335,4]
[347995771,1736262676812,-3986.19092919,0.00011335,4]
[347995772,1736262677083,-500.0,9.965e-05,2]
[347995773,1736262677094,-500.0,9.965e-05,2]
[347995774,1736262677104,-500.0,0.00010238,2]
[347995775,1736262677114,-500.0,0.00010239,2]
[347995776,1736262677124,-500.0,0.00010239,2]
[347995777,1736262677134,-500.0,0.00010512,2]
[347995778,1736262677144,-500.0,0.00010513,2]
[347995779,1736262677154,-16420.0,0.00011335,4]
[347995780,1736262677165,-500.0,0.00011335,4]
[347995781,1736262677188,-288.34,0.00010787,2]
[347995782,1736262677198,-3399.47947291,0.00011335,4]
[347995783,1736262677209,-1384.7531,0.00011335,4]
[347995784,1736262677220,-712.463,0.00011335,4]
[347995785,1736262677233,-11267.20605,0.00011335,4]
[347995786,1736262677252,-930.85788013,0.00011335,4]
[347995787,1736262677263,-925.1711397,0.00011335,4]
[347995788,1736262677274,-899.379,0.00011335,4]
[347995789,1736262677286,-689.57812261,0.00011335,4]
[347995790,1736262677297,-290.18751879,0.00011335,4]
[347995791,1736262677308,-1297.73764638,0.00011335,4]
[347995792,1736262677320,-595.29999864,0.00011335,4]
[347995793,1736262677377,-485.91532916,9.864e-05,2]
[347995794,1736262677388,-14.08467084,9.864e-05,2]
[347995795,1736262677398,-500.0,0.00010513,2]
[347995796,1736262677408,-1373.14585864,0.00011335,4]
[347995797,1736262677419,-339.27370532,0.00011335,4]
[347995798,1736262677430,-301.04,0.00011335,4]
[347995799,1736262677441,-4842.63983791,0.00011335,4]
[347995800,1736262677471,-1162.02012695,0.00011335,4]
[347995801,1736262677483,-6127.55805276,0.00011335,4]
[347995802,1736262677532,-1142.86826473,0.00011335,4]
[347995803,1736262677543,-4722.11319,0.00011335,4]
[347995804,1736262677555,-133891.93778116,0.00011335,4]
[347995805,1736262677587,-39789.9104,0.00011335,4]
[347995806,1736262677599,-2891.94264428,0.00011335,4]
[347995807,1736262677611,-19301.39428718,0.00011335,4]
[347995808,1736262677622,-15099.985,0.00011335,4]
[347995809,1736262677633,-1186.54231003,0.00011335,4]
[347995810,1736262677666,-500.0,0.00010787,2]
[347995811,1736262677675,-4465.05,0.00011335,4]
[347995812,1736262677687,-40112.068,0.00011335,4]
[347995813,1736262677698,-1241.33404511,0.00011335,4]
[347995814,1736262687714,705.39798492,5.481e-05,7]
[347995819,1736262727900,-148925.18828894,0.00012,10]
[347995824,1736262987476,2371.80273357,0.0002,120]
[347995826,1736263087538,400.47,0.0002,120]
[347995827,1736263096021,150.0,7.201e-05,2]
[347995829,1736263112757,250.47,0.0002,120]
[347995865,1736263831739,-260.78,8e-05,2]
[347995866,1736263831749,-1162.16,8.219e-05,2]
[347995867,1736263831759,-250.0,8.421e-05,2]
[347995868,1736263831769,-152.02145385,8.473e-05,2]
[347995869,1736263831778,-147.11454615,8.5e-05,2]
[347995870,1736263831801,-7588.03180812,8.5e-05,2]
[347995871,1736263831811,-7448.7386839,8.5e-05,2]
[347995872,1736263831820,-283.13435253,8.502e-05,2]
[347995873,1736263831830,-215.54,8.503e-05,2]
[347995874,1736263831839,-150.0,8.556e-05,2]
[347995875,1736263831853,-304.7,8.597e-05,2]
[347995876,1736263831862,-564.29,8.711e-05,2]
[347995877,1736263831871,-274.83,8.768e-05,2]
[347995878,1736263831881,-900.0,8.768e-05,2]
[347995879,1736263831890,-486.0,8.873e-05,2]
[347995880,1736263831899,-164.81,8.873e-05,2]
[347995881,1736263831909,-250.49,8.984e-05,2]
[347995882,1736263831919,-1000.0,8.99e-05,2]
[347995883,1736263831928,-1827.1,9.022e-05,2]
[347995884,1736263831938,-796.22,9.075e-05,2]
[347995885,1736263831948,-150.0,9.083e-05,2]
[347995886,1736263831957,-305.16,9.105e-05,2]
[347995887,1736263831967,-250.0,9.125e-05,2]
[347995888,1736263831977,-250.0,9.162e-05,2]
[347995889,1736263831987,-500.0,9.342e-05,2]
[347995890,1736263831996,-500.0,9.342e-05,2]
[347995891,1736263832006,-150.0,9.482e-05,2]
[347995892,1736263832015,-4715.01,9.52e-05,5]
[347995893,1736263832025,-150.0,9.656e-05,2]
[347995894,1736263832035,-150.0,9.656e-05,2]
[347995895,1736263832044,-1305.0,9.67e-05,2]
[347995896,1736263832054,-503.95,9.67e-05,2]
[347995897,1736263832063,-20726.02651811,9.7e-05,2]
[347995898,1736263832073,-185.3588,9.764e-05,2]
[347995899,1736263832083,-311.4713,9.764e-05,2]
[347995900,1736263832093,-609.5424,9.764e-05,2]
[347995901,1736263832106,-500.0,9.863e-05,2]
[347995902,1736263832116,-2250.21,9.863e-05,2]
[347995903,1736263832126,-500.0,9.863e-05,2]
[347995904,1736263832135,-1304.49,9.863e-05,2]
[347995905,1736263832145,-4515.55,9.863e-05,2]
[347995906,1736263832154,-1828.4,9.863e-05,2]
[347995907,1736263832163,-5701.5,9.863e-05,2]
[347995908,1736263832173,-3083.97,9.863e-05,2]
[347995909,1736263832183,-5138.6,9.863e-05,2]
[347995910,1736263832195,-16018.72,9.863e-05,2]
[347995911,1736263832205,-830.06,9.863e-05,2]
[347995912,1736263832214,-1787.15,9.863e-05,2]
[347995913,1736263832223,-5133.87,9.863e-05,2]
[347995914,1736263832235,-2801.75,9.863e-05,2]
[347995915,1736263832244,-8554.94,9.863e-05,2]
[347995916,1736263832254,-4563.86,9.863e-05,2]
[347995917,1736263832264,-1496.82,9.863e-05,2]
[347995918,1736263832274,-860.4,9.863e-05,2]
[347995919,1736263832285,-4689.52,9.863e-05,2]
[347995920,1736263832295,-2860.17,9.863e-05,2]
[347995921,1736263832305,-944.74,9.863e-05,2]
[347995922,1736263832315,-7170.94,9.863e-05,2]
[347995923,1736263832326,-9213.36,9.863e-05,2]
[347995924,1736263832336,-540.9,9.863e-05,2]
[347995925,1736263832346,-824.76,9.863e-05,2]
[347995926,1736263832362,-500.0,9.863e-05,2]
[347995927,1736263832372,-3420.5,9.863e-05,2]
[347995928,1736263832382,-874.68,9.863e-05,2]
[347995929,1736263832392,-664.73,9.863e-05,2]
[347995930,1736263832402,-500.0,9.863e-05,2]
[347995931,1736263832411,-792.91,9.863e-05,2]
[347995932,1736263832421,-289.29871139,9.863e-05,2]
[347995933,1736263832431,-500.0,9.864e-05,2]
[347995934,1736263832440,-500.0,9.864e-05,2]
[347995935,1736263832450,-272063.3779,9.864e-05,2]
[347995936,1736263832459,-1181.8531,9.864e-05,2]
[347995937,1736263832469,-5628.00960951,9.864e-05,2]
[347995938,1736263832484,-2393.00749049,9.864e-05,2]
[347995939,1736263832494,-288.13022269,9.865e-05,2]
[347995940,1736263832505,-2134.74678327,9.865e-05,2]
[347995941,1736263832517,-133.10469404,9.865e-05,2]
[347995942,1736263832527,-3166.5811,9.865e-05,2]
[347995943,1736263832536,-150.0,9.869e-05,2]
[347995944,1736263832546,-500.0,9.89e-05,2]
[347995945,1736263832555,-26.272521,9.931e-05,2]
[347995946,1736263832567,-1562.31917186,9.931e-05,2]
[347995947,1736263832577,-150.0,9.937e-05,2]
[347995948,1736263832586,-150.0,9.937e-05,2]
[347995949,1736263832596,-150.0,9.937e-05,2]
[347995950,1736263832609,-150.0,9.937e-05,2]
[347995951,1736263832619,-150.0,9.937e-05,2]
[347995952,1736263832629,-293.43846544,9.94e-05,2]
[347995953,1736263832639,-150.0,9.957e-05,2]
[347995954,1736263832649,-690.45508009,9.964e-05,2]
[347995955,1736263832660,-1275.16491991,9.964e-05,2]
[347995956,1736263832670,-1441.85,9.964e-05,2]
[347995957,1736263832679,-967.1424874,9.964e-05,2]
[347995958,1736263832691,-1063.9775126,9.964e-05,2]
[347995959,1736263832701,-500.0,9.964e-05,2]
[347995960,1736263832710,-766.9,9.964e-05,2]
[347995961,1736263832720,-241.42625148,9.964e-05,2]
[347995962,1736263832731,-279.607082,9.964e-05,2]
[347995963,1736263832749,-63.10666652,9.964e-05,2]
[347995964,1736263832758,-500.0,9.964e-05,2]
[347995965,1736263832768,-1220.67533348,9.964e-05,2]
[347995966,1736263832779,-126.70466652,9.964e-05,2]
[347995967,1736263832789,-627.64764623,9.964e-05,2]
[347995968,1736263832800,-710.25235377,9.964e-05,2]
[347995969,1736263832810,-266.57764623,9.964e-05,2]
[347995970,1736263832822,-233.42235377,9.964e-05,2]
[347995971,1736263832832,-726.31,9.964e-05,2]
[347995972,1736263832842,-617.27,9.964e-05,2]
[347995973,1736263832853,-1113.64,9.964e-05,2]
[347995974,1736263832863,-519.08,9.964e-05,2]
[347995975,1736263832873,-682.82,9.964e-05,2]
[347995976,1736263832882,-767.32,9.964e-05,2]
[347995977,1736263832892,-1790.9,9.964e-05,2]
[347995978,1736263832901,-2333.72,9.964e-05,2]
[347995979,1736263832913,-1842.07,9.964e-05,2]
[347995980,1736263832922,-1453.48,9.964e-05,2]
[347995981,1736263832932,-782.9,9.964e-05,2]
[347995982,1736263832942,-1135.22,9.964e-05,2]
[347995983,1736263832952,-500.0,9.964e-05,2]
[347995984,1736263832962,-908.06,9.964e-05,2]
[347995985,1736263832972,-925.35,9.964e-05,2]
[347995986,1736263832983,-877.63,9.964e-05,2]
[347995987,1736263832993,-579.05,9.964e-05,2]
[347995988,1736263833003,-1845.34,9.964e-05,2]
[347995989,1736263833012,-795.6,9.964e-05,2]
[347995990,1736263833022,-2158.61,9.964e-05,2]
[347995991,1736263833032,-714.94,9.964e-05,2]
[347995992,1736263833043,-1826.77,9.964e-05,2]
[347995993,1736263833053,-500.0,9.964e-05,2]
[347995994,1736263833063,-849.05,9.964e-05,2]
[347995995,1736263833074,-500.0,9.964e-05,2]
[347995996,1736263833084,-636.08,9.964e-05,2]
[347995997,1736263833094,-1448.38,9.964e-05,2]
[347995998,1736263833107,-500.0,9.964e-05,2]
[347995999,1736263833117,-1120.62,9.964e-05,2]
[347996000,1736263833128,-1088.41,9.964e-05,2]
[347996001,1736263833138,-3453.96,9.964e-05,2]
[347996002,1736263833148,-1554.61,9.964e-05,2]
[347996003,1736263833158,-566.16489277,9.964e-05,2]
[347996004,1736263833168,-1217.44,9.964e-05,2]
[347996005,1736263833178,-500.0,9.964e-05,2]
[347996006,1736263833193,-870.05,9.964e-05,2]
[347996007,1736263833204,-672.55,9.964e-05,2]
[347996008,1736263833216,-500.0,9.964e-05,2]
[347996009,1736263833225,-739.47,9.964e-05,2]
[347996010,1736263833238,-1595.12,9.964e-05,2]
[347996011,1736263833248,-1563.31,9.964e-05,2]
[347996012,1736263833259,-500.0,9.964e-05,2]
[347996013,1736263833270,-500.0,9.964e-05,2]
[347996014,1736263833280,-500.0,9.964e-05,2]
[347996015,1736263833290,-996.09,9.964e-05,2]
[347996016,1736263833301,-1557.7,9.964e-05,2]
[347996017,1736263833311,-500.0,9.964e-05,2]
[347996018,1736263833321,-883.86,9.964e-05,2]
[347996019,1736263833331,-765.55,9.964e-05,2]
[347996020,1736263833341,-500.0,9.964e-05,2]
[347996021,1736263833353,-724.56,9.964e-05,2]
[347996022,1736263833364,-406.25393031,9.964e-05,2]
[347996023,1736263833374,-2608.4,9.964e-05,2]
[347996024,1736263833384,-1221.39,9.964e-05,2]
[347996025,1736263833394,-500.0,9.964e-05,2]
[347996026,1736263833404,-500.0,9.964e-05,2]
[347996027,1736263833414,-824.39,9.964e-05,2]
[347996028,1736263833424,-575.2,9.964e-05,2]
[347996029,1736263833434,-731.88,9.964e-05,2]
[347996030,1736263833443,-500.0,9.964e-05,2]
[347996031,1736263833453,-500.0,9.964e-05,2]
[347996032,1736263833463,-1460.43,9.964e-05,2]
[347996033,1736263833472,-856.3,9.964e-05,2]
[347996034,1736263833483,-3613.69,9.964e-05,2]
[347996035,1736263833493,-500.0,9.964e-05,2]
[347996036,1736263833503,-991.0,9.964e-05,2]
[347996037,1736263833513,-500.0,9.964e-05,2]
[347996038,1736263833523,-841.81,9.964e-05,2]
[347996039,1736263833533,-387.9822189,9.964e-05,2]
[347996040,1736263833543,-3096.18,9.964e-05,2]
[347996041,1736263833554,-1442.72,9.964e-05,2]
[347996042,1736263833564,-1892.87,9.964e-05,2]
[347996043,1736263833574,-500.0,9.964e-05,2]
[347996044,1736263833584,-774.17,9.964e-05,2]
[347996045,1736263833594,-907.31,9.964e-05,2]
[347996046,1736263833608,-513.49,9.964e-05,2]
[347996047,1736263833618,-3237.55,9.964e-05,2]
[347996048,1736263833628,-672.45,9.964e-05,2]
[347996049,1736263833637,-752.65,9.964e-05,2]
[347996050,1736263833647,-1344.94,9.964e-05,2]
[347996051,1736263833656,-5437.47,9.964e-05,2]
[347996052,1736263833666,-881.2,9.964e-05,2]
[347996053,1736263833677,-2241.45,9.964e-05,2]
[347996054,1736263833687,-500.0,9.964e-05,2]
[347996055,1736263833697,-500.0,9.964e-05,2]
[347996056,1736263833707,-1777.72,9.964e-05,2]
[347996057,1736263833718,-1459.14,9.964e-05,2]
[347996058,1736263833727,-731.55,9.964e-05,2]
[347996059,1736263833737,-599.79,9.964e-05,2]
[347996060,1736263833747,-678.26,9.964e-05,2]
[347996061,1736263833757,-7213.42,9.964e-05,2]
[347996062,1736263833767,-3211.96,9.964e-05,2]
[347996063,1736263833777,-810.17,9.964e-05,2]
[347996064,1736263833787,-1859.3,9.964e-05,2]
[347996065,1736263833797,-518.99,9.964e-05,2]
[347996066,1736263833806,-500.0,9.964e-05,2]
[347996067,1736263833816,-857.54,9.964e-05,2]
[347996068,1736263833825,-982.74,9.964e-05,2]
[347996069,1736263833835,-1868.88,9.964e-05,2]
[347996070,1736263833845,-1684.02,9.964e-05,2]
[347996071,1736263833858,-1374.84,9.964e-05,2]
[347996072,1736263833868,-6155.23,9.964e-05,2]
[347996073,1736263833878,-527.17,9.964e-05,2]
[347996074,1736263833888,-5406.755852,9.964e-05,2]
[347996075,1736263833898,-617.1,9.964e-05,2]
[347996076,1736263833908,-960.41,9.964e-05,2]
[347996077,1736263833919,-616.31,9.964e-05,2]
[347996078,1736263833929,-500.0,9.964e-05,2]
[347996079,1736263833939,-500.0,9.964e-05,2]
[347996080,1736263833949,-821.48,9.964e-05,2]
[347996081,1736263833961,-707.3,9.964e-05,2]
[347996082,1736263833971,-1175.09,9.964e-05,2]
[347996083,1736263833981,-500.0,9.964e-05,2]
[347996084,1736263833991,-79.28672949,9.964e-05,2]
[347996085,1736263834006,-652.98327051,9.964e-05,2]
[347996086,1736263834016,-280.92673349,9.964e-05,2]
[347996087,1736263834036,-842.7947256,9.964e-05,2]
[347996088,1736263834049,-1003.27854091,9.964e-05,2]
[347996089,1736263834059,-5139.006052,9.964e-05,2]
[347996090,1736263834069,-1705.23,9.964e-05,2]
[347996091,1736263834079,-154.718865,9.964e-05,2]
[347996092,1736263834090,-1326.01,9.964e-05,2]
[347996093,1736263834103,-500.0,9.964e-05,2]